bitfinex-derivatives/quotes_BTCF0:USTF0_20250517
["timestamp","ask_amount","ask_price","bid_price","bid_amount"]
[1747508526147,0.55966405,103010.0,103000.0,0.99662112]
[1747508526352,0.92046405,103010.0,103000.0,0.99662112]
[1747508527259,0.55966405,103010.0,103000.0,0.99662112]
[1747508527459,0.92046405,103010.0,103000.0,0.99662112]
[1747508533250,0.92046405,103010.0,103000.0,0.61612112]
[1747508533457,0.79985797,103010.0,103000.0,0.61612112]
[1747508534763,0.43905797,103010.0,103000.0,0.61612112]
[1747508534963,0.79985797,103010.0,103000.0,0.61612112]
[1747508537464,0.43905797,103010.0,103000.0,0.61612112]
[1747508537667,0.79985797,103010.0,103000.0,0.61612112]
[1747508537860,0.24498307,103010.0,103000.0,0.73871375]
[1747508538166,0.43905787,103010.0,103000.0,0.73871375]
[1747508538354,0.43905787,103010.0,103000.0,0.77131375]
[1747508539366,0.43905787,103010.0,103000.0,0.75895978]
[1747508539565,0.43905787,103010.0,103000.0,1.10935978]
[1747508539767,0.43905787,103010.0,103000.0,0.98676715]
[1747508542369,0.43905787,103010.0,103000.0,1.10935978]
[1747508542965,0.56014392,103010.0,103000.0,1.10935978]
[1747508543157,0.56014392,103010.0,103000.0,0.98676715]
[1747508544361,0.56014392,103010.0,103000.0,1.03625968]
[1747508546867,0.56014392,103010.0,103000.0,0.91382568]
[1747508547174,0.56014392,103010.0,103000.0,1.03641831]
[1747508547474,0.56014392,103010.0,103000.0,1.08243705]
[1747508550586,0.56014392,103010.0,103000.0,1.01723705]
[1747508550779,0.56014392,103010.0,103000.0,1.22511705]
[1747508550968,0.56014392,103010.0,103000.0,1.01723705]
[1747508551168,0.92094392,103010.0,103000.0,0.86274442]
[1747508551370,0.92094392,103010.0,103000.0,0.98533705]
[1747508552180,0.76963069,103010.0,103000.0,0.93931831]
[1747508552372,0.76963069,103010.0,103000.0,0.90217975]
[1747508552771,0.76963069,103010.0,103000.0,0.93397975]
[1747508552965,0.76963069,103010.0,103000.0,1.14181975]
[1747508553577,0.73868082,103010.0,103000.0,1.14181975]
[1747508554978,0.73868082,103010.0,103000.0,1.01922712]
[1747508555177,0.73868082,103010.0,103000.0,1.14181975]
[1747508555379,0.73868082,103010.0,103000.0,0.93397975]
[1747508555578,0.73868082,103010.0,103000.0,1.14181975]
[1747508556074,0.73868082,103010.0,103000.0,1.01922712]
[1747508556280,0.73868082,103010.0,103000.0,1.14181975]
[1747508556779,0.73868082,103010.0,103000.0,0.81138712]
[1747508556978,0.73868082,103010.0,103000.0,0.93397975]
[1747508558177,0.61759477,103010.0,103000.0,0.93397975]
[1747508558473,0.61759477,103010.0,103000.0,0.77958712]
[1747508558474,0.7401874,103010.0,103000.0,0.77958712]
[1747508558680,0.7401874,103010.0,103000.0,0.77958702]
[1747508560578,0.7401874,103010.0,103000.0,0.42918702]
[1747508560775,1.0780674,103010.0,103000.0,0.23509332]
[1747508560980,1.0780674,103010.0,103000.0,0.27221719]
[1747508563285,1.0800674,103010.0,103000.0,0.27221719]
[1747508563583,1.0820674,103010.0,103000.0,0.27221719]
[1747508564683,1.0820674,103010.0,103000.0,0.18560079]
[1747508569180,1.4428674,103010.0,103000.0,0.18560079]
[1747508571287,0.7212674,103010.0,103000.0,0.18560079]
[1747508571488,1.4428674,103010.0,103000.0,0.18560079]
[1747508579694,0.1940936,103000.0,102990.0,0.00194184]
[1747508579988,1.10321886,103000.0,102990.0,0.00194184]
[1747508580189,0.98062623,103000.0,102990.0,0.18194184]
[1747508580391,0.98062623,103000.0,102990.0,0.21354184]
[1747508580883,1.19246476,103000.0,102990.0,0.21354184]
[1747508582784,1.20246476,103000.0,102990.0,0.40765424]
[1747508583793,1.19246476,103000.0,102990.0,0.40765424]
[1747508584195,1.19246476,103000.0,102990.0,0.44025424]
[1747508584396,0.98462476,103000.0,102990.0,0.44025424]
[1747508584696,1.19250476,103000.0,102990.0,0.44025424]
[1747508584890,1.19250476,103000.0,102990.0,0.4456964]
[1747508585590,1.06991213,103000.0,102990.0,0.56828903]
[1747508585790,1.27775213,103000.0,102990.0,0.59878903]
[1747508585986,1.06991213,103000.0,102990.0,0.59878903]
[1747508586388,0.86203213,103000.0,102990.0,0.59878903]
[1747508586589,1.06991213,103000.0,102990.0,0.59878903]
[1747508586787,0.86203213,103000.0,102990.0,0.4761964]
[1747508587098,1.01300397,103000.0,102990.0,0.4761964]
[1747508587298,0.98040397,103000.0,102990.0,0.4761964]
[1747508588202,0.95020397,103000.0,102990.0,0.4761964]
[1747508593599,0.95020397,103000.0,102990.0,0.59878903]
[1747508595510,0.95117381,103000.0,102990.0,0.59878903]
[1747508595898,1.07213179,103000.0,102990.0,0.59878903]
[1747508597798,1.10273179,103000.0,102990.0,0.59878903]
[1747508599510,0.98177381,103000.0,102990.0,0.59878903]
[1747508600809,0.62097381,103000.0,102990.0,0.59878903]
[1747508601109,0.98177381,103000.0,102990.0,0.59878903]
[1747508601510,0.62097381,103000.0,102990.0,0.59878903]
[1747508605617,0.62097381,103000.0,102990.0,0.94918903]
[1747508606212,0.62097381,103000.0,102990.0,1.30998903]
[1747508606915,0.59037381,103000.0,102990.0,1.30998903]
[1747508607702,0.59037381,103000.0,102990.0,1.3471129]
[1747508608407,0.39628021,103000.0,102990.0,1.3471129]
[1747508608607,0.33328405,103000.0,102990.0,0.9967129]
[1747508609911,0.33328405,103000.0,102990.0,1.4123129]
[1747508610417,0.33328405,103000.0,102990.0,1.5094049]
[1747508611516,0.33328405,103000.0,102990.0,1.4123129]
[1747508611717,0.00096984,103000.0,102990.0,1.7627129]
[1747508613023,0.06286984,103000.0,102990.0,1.81220543]
[1747508614021,0.03191858,103000.0,102990.0,1.81220543]
[1747508614214,0.0309,103000.0,102990.0,1.81220543]
[1747508619823,0.0309,103000.0,102990.0,1.6896128]
[1747508620222,0.0309,103000.0,102990.0,1.81220543]
[1747508623629,0.0614,103000.0,102990.0,1.81220543]
[1747508624931,0.0309,103000.0,102990.0,1.81220543]
[1747508627630,0.0939,103000.0,102990.0,1.7627129]
[1747508628133,0.21437568,103000.0,102990.0,1.7627129]
[1747508628828,0.21437568,103000.0,102990.0,1.4019129]
[1747508629036,0.21437568,103000.0,102990.0,1.7627129]
[1747508633529,0.20490846,103000.0,102990.0,1.7627129]
[1747508633730,0.20490846,103000.0,102990.0,1.80881262]
[1747508635231,0.08443278,103000.0,102990.0,1.80881262]
[1747508636735,0.08443278,103000.0,102990.0,1.82118128]
[1747508638038,0.08443278,103000.0,102990.0,1.86653874]
[1747508638842,0.27852638,103000.0,102990.0,1.11224611]
[1747508639133,0.27852638,103000.0,102990.0,1.02703874]
[1747508641029,0.27852638,103000.0,102990.0,0.98168128]
[1747508641646,0.27852638,103000.0,102990.0,0.93218875]
[1747508642538,0.27852638,103000.0,102990.0,0.80959612]
[1747508642838,0.27852638,103000.0,102990.0,0.93218875]
[1747508643040,0.27852638,103000.0,102990.0,1.13990875]
[1747508645543,0.08443278,103000.0,102990.0,1.13990875]
[1747508646045,0.08443278,103000.0,102990.0,1.50070875]
[1747508646241,0.08443278,103000.0,102990.0,1.59245391]
[1747508646446,0.12047568,103010.0,103000.0,0.1940937]
[1747508646647,0.15187568,103010.0,103000.0,0.89367896]
[1747508646849,0.15187568,103010.0,103000.0,0.77108633]
[1747508647145,0.15187568,103010.0,103000.0,1.07367896]
[1747508647445,0.15187568,103010.0,103000.0,1.07467896]
[1747508647639,0.15187568,103010.0,103000.0,0.95208633]
[1747508647848,0.15187568,103010.0,103000.0,0.95308633]
[1747508648244,0.15187568,103010.0,103000.0,0.59228633]
[1747508648446,0.15187568,103010.0,103000.0,0.63838605]
[1747508649649,0.15187568,103010.0,103000.0,0.99918605]
[1747508649946,0.21637568,103010.0,103000.0,0.95308633]
[1747508650450,0.21637568,103010.0,103000.0,1.00257886]
[1747508651550,0.41045048,103010.0,103000.0,1.00257886]
[1747508651750,0.21637568,103010.0,103000.0,1.00257886]
[1747508651935,0.21637568,103010.0,103000.0,1.12517149]
[1747508652746,0.21637568,103010.0,103000.0,1.00257886]
[1747508653249,0.21637568,103010.0,103000.0,1.04868828]
[1747508653649,0.21637568,103010.0,103000.0,1.39908828]
[1747508655660,0.21637568,103010.0,103000.0,1.03828828]
[1747508655849,0.21637568,103010.0,103000.0,1.39908828]
[1747508656348,0.21637568,103010.0,103000.0,1.72940091]
[1747508659053,0.18507568,103010.0,103000.0,1.72940091]
[1747508659651,0.15367568,103010.0,103000.0,1.72940091]
[1747508660257,0.18627568,103010.0,103000.0,1.72940091]
[1747508660444,0.0658,103010.0,103000.0,1.72940091]
[1747508661044,0.0658,103010.0,103000.0,1.73484307]
[1747508662248,0.034851,103010.0,103000.0,1.73484307]
[1747508664353,0.034851,103010.0,103000.0,1.48965781]
[1747508664548,0.034851,103010.0,103000.0,1.73484307]
[1747508667560,0.034851,103010.0,103000.0,1.68873365]
[1747508669252,0.034851,103010.0,103000.0,1.67632353]
[1747508669454,0.0326,103010.0,103000.0,1.67632353]
[1747508669960,0.18397568,103020.0,103010.0,0.1940747]
[1747508670160,0.21427568,103020.0,103010.0,0.61756733]
[1747508670668,0.40833158,103020.0,103010.0,0.61756733]
[1747508670860,0.21427568,103020.0,103010.0,0.61756733]
[1747508671261,0.21427568,103020.0,103010.0,0.80714852]
[1747508673362,0.40833168,103020.0,103010.0,0.80714852]
[1747508673561,0.21427568,103020.0,103010.0,0.80714852]
[1747508674359,0.21427568,103020.0,103010.0,1.16794852]
[1747508674658,0.21427568,103020.0,103010.0,0.80714852]
[1747508675468,0.21427568,103020.0,103010.0,1.16794852]
[1747508675967,0.15077568,103020.0,103010.0,1.16794852]
[1747508676164,0.30174752,103020.0,103010.0,1.17339068]
[1747508676671,0.33194752,103020.0,103010.0,1.52379068]
[1747508678767,0.33194752,103020.0,103010.0,1.73151068]
[1747508679068,0.36374752,103020.0,103010.0,1.73151068]
[1747508679659,0.36374752,103020.0,103010.0,1.81808562]
[1747508687374,0.36374752,103020.0,103010.0,1.45728562]
[1747508690780,0.36374752,103020.0,103010.0,1.12697299]
[1747508691076,0.36374752,103020.0,103010.0,1.45724562]
[1747508692375,0.33194752,103020.0,103010.0,1.78096321]
[1747508692570,0.15077568,103020.0,103010.0,1.78096321]
[1747508693778,0.15077568,103020.0,103010.0,1.82714157]
[1747508695475,0.0303,103020.0,103010.0,1.82714157]
[1747508700983,0.0303,103020.0,103010.0,1.61946157]
[1747508701180,0.33184752,103030.0,103020.0,0.1940559]
[1747508701482,0.30174752,103030.0,103020.0,0.53484116]
[1747508702075,0.30174752,103030.0,103020.0,0.71484116]
[1747508702279,0.30374752,103030.0,103020.0,0.71484116]
[1747508702474,0.30574752,103030.0,103020.0,0.71484116]
[1747508702674,0.27544752,103030.0,103020.0,1.07564116]
[1747508702885,0.27544752,103030.0,103020.0,1.19823379]
[1747508703077,0.14048022,103030.0,103020.0,1.54863379]
[1747508703278,0.14048022,103030.0,103020.0,1.47221952]
[1747508704283,0.13848022,103030.0,103020.0,1.47221952]
[1747508704483,0.13848022,103030.0,103020.0,1.47321952]
[1747508705189,0.13648022,103030.0,103020.0,1.47421952]
[1747508705575,0.033,103040.0,103030.0,0.1940371]
[1747508705785,0.033,103040.0,103030.0,1.54030973]
[1747508705982,0.0647,103040.0,103030.0,1.54030973]
[1747508706184,0.0647,103040.0,103030.0,1.72030973]
[1747508706884,0.0647,103040.0,103030.0,1.73457755]
[1747508708391,0.03376086,103040.0,103030.0,1.73457755]
[1747508710191,0.03376086,103040.0,103030.0,1.77353195]
[1747508711990,0.06486086,103040.0,103030.0,1.77353195]
[1747508719099,0.06486086,103040.0,103030.0,1.73651864]
[1747508720796,0.06486086,103040.0,103030.0,1.7419608]
[1747508725411,0.0628,103040.0,103030.0,1.7419608]
[1747508725699,0.0628,103040.0,103030.0,1.3915608]
[1747508727001,0.0946,103040.0,103030.0,1.3915608]
[1747508727704,0.0318,103050.0,103040.0,0.1940183]
[1747508728002,0.21358429,103060.0,103050.0,0.1939995]
[1747508728307,0.24500454,103060.0,103050.0,1.00857163]
[1747508729202,0.24500454,103060.0,103050.0,1.01843387]
[1747508729595,0.24800454,103060.0,103050.0,1.01843387]
[1747508729789,0.1019,103060.0,103050.0,1.01843387]
[1747508730901,0.1019,103060.0,103050.0,1.05544718]
[1747508731904,0.0999,103060.0,103050.0,1.05544718]
[1747508732202,0.0989,103060.0,103050.0,1.05544718]
[1747508736105,0.0989,103060.0,103050.0,1.06088934]
[1747508737605,0.0989,103060.0,103050.0,1.06084934]
[1747508740104,0.0989,103060.0,103050.0,0.64576934]
[1747508740310,0.0989,103060.0,103050.0,1.06084934]
[1747508744001,0.0369,103060.0,103050.0,1.06084934]
[1747508744206,0.004,103060.0,103050.0,1.46871088]
[1747508745416,0.002,103060.0,103050.0,1.46971088]
[1747508745619,0.24642799,103070.0,103060.0,0.1939806]
[1747508745620,0.44038999,103070.0,103060.0,0.1939806]
[1747508745913,0.44038999,103070.0,103060.0,0.37747323]
[1747508746121,0.44038999,103070.0,103060.0,0.37785298]
[1747508746321,0.44038999,103070.0,103060.0,0.55785298]
[1747508747020,0.44038999,103070.0,103060.0,0.43526035]
[1747508747216,0.44038999,103070.0,103060.0,0.64274035]
[1747508747417,0.44038999,103070.0,103060.0,0.40476035]
[1747508747616,0.44038999,103070.0,103060.0,0.81980035]
[1747508750404,0.44038999,103070.0,103060.0,0.82524251]
[1747508751217,0.80118999,103070.0,103060.0,0.82524251]
[1747508752119,0.80118999,103070.0,103060.0,0.86225582]
[1747508752412,0.44038999,103070.0,103060.0,0.86225582]
[1747508752617,0.80118999,103070.0,103060.0,0.86225582]
[1747508753913,0.80118999,103070.0,103060.0,0.98484845]
[1747508754112,0.44038999,103070.0,103060.0,1.01494845]
[1747508754419,0.80118999,103070.0,103060.0,1.01494845]
[1747508755116,0.44038999,103070.0,103060.0,1.01494845]
[1747508755323,0.80118999,103070.0,103060.0,1.01494845]
[1747508755719,0.44038999,103070.0,103060.0,1.01494845]
[1747508755914,0.80118999,103070.0,103060.0,1.01494845]
[1747508756221,0.80118999,103070.0,103060.0,1.04594845]
[1747508756418,0.44038999,103070.0,103060.0,1.04594845]
[1747508757019,0.80118999,103070.0,103060.0,1.04594845]
[1747508757218,0.44038999,103070.0,103060.0,1.04594845]
[1747508757422,0.80118999,103070.0,103060.0,1.04594845]
[1747508758520,0.44038999,103070.0,103060.0,1.04594845]
[1747508760420,0.44038979,103070.0,103060.0,1.04594845]
[1747508761126,0.44038979,103070.0,103060.0,1.0463282]
[1747508762031,0.44038979,103070.0,103060.0,1.0462882]
[1747508762032,0.80118979,103070.0,103060.0,1.0462882]
[1747508762217,0.80118979,103070.0,103060.0,1.00927489]
[1747508763021,0.44038979,103070.0,103060.0,1.00927489]
[1747508763221,0.80118979,103070.0,103060.0,1.00927489]
[1747508764530,0.44038979,103070.0,103060.0,1.00927489]
[1747508765017,0.24642799,103070.0,103060.0,1.00927489]
[1747508765214,0.15072799,103070.0,103060.0,1.13186752]
[1747508767426,1.01521432,103080.0,103070.0,0.1939617]
[1747508767633,1.01521432,103080.0,103070.0,0.40915433]
[1747508767821,1.01521432,103080.0,103070.0,0.40953408]
[1747508768127,1.01521432,103080.0,103070.0,0.58953408]
[1747508768826,1.01721432,103080.0,103070.0,0.58953408]
[1747508769027,1.01921432,103080.0,103070.0,0.58953408]
[1747508769934,0.82526652,103080.0,103070.0,0.58953408]
[1747508770322,0.61342799,103080.0,103070.0,0.58953408]
[1747508770830,0.80737099,103080.0,103070.0,0.58953408]
[1747508772019,0.61342799,103080.0,103070.0,0.58953408]
[1747508772330,0.55042799,103080.0,103070.0,0.58953408]
[1747508774327,0.58272799,103080.0,103070.0,0.58953408]
[1747508776636,0.55042799,103080.0,103070.0,0.58953408]
[1747508780142,0.58102799,103080.0,103070.0,0.58953408]
[1747508780336,0.61302799,103080.0,103070.0,0.58953408]
[1747508780537,0.4623,103080.0,103070.0,0.58953408]
[1747508780742,0.4623,103080.0,103070.0,0.59497624]
[1747508782043,0.006,103080.0,103070.0,0.95577624]
[1747508782245,0.006,103080.0,103070.0,1.07836887]
[1747508782447,0.006,103080.0,103070.0,0.99278955]
[1747508782836,0.006,103080.0,103070.0,1.03981325]
[1747508783444,0.004,103080.0,103070.0,1.04081325]
[1747508783848,0.002,103080.0,103070.0,1.04181325]
[1747508784351,0.002,103080.0,103070.0,1.24921325]
[1747508786650,0.002,103080.0,103070.0,1.26155103]
[1747508790353,0.002,103080.0,103070.0,1.21219994]
[1747508792151,0.002,103080.0,103070.0,0.88220731]
[1747508792358,0.0666,103080.0,103070.0,1.05871994]
[1747508792655,0.0985,103080.0,103070.0,0.64399994]
[1747508792854,0.0985,103080.0,103070.0,0.64437969]
[1747508793054,0.0985,103080.0,103070.0,0.85173969]
[1747508794159,0.0985,103080.0,103070.0,0.80471599]
[1747508795158,0.0985,103080.0,103070.0,0.84173962]
[1747508797253,0.0985,103080.0,103070.0,1.20253962]
[1747508797659,0.0985,103080.0,103070.0,1.24956902]
[1747508804059,0.0985,103080.0,103070.0,1.29892011]
[1747508806067,0.0985,103080.0,103070.0,0.93812011]
[1747508806269,0.0985,103080.0,103070.0,1.29892011]
[1747508807569,0.0985,103080.0,103070.0,1.26189648]
[1747508807971,0.0985,103080.0,103070.0,1.05453648]
[1747508808157,0.0985,103080.0,103070.0,1.46917648]
[1747508808863,0.0985,103080.0,103070.0,1.26189648]
[1747508809069,0.0985,103080.0,103070.0,1.46917648]
[1747508811767,0.0985,103080.0,103070.0,1.05453648]
[1747508811972,0.0985,103080.0,103070.0,1.46909648]
[1747508812465,0.0985,103080.0,103070.0,1.41974539]
[1747508816869,0.0985,103080.0,103070.0,1.45684812]
[1747508819077,0.292443,103080.0,103070.0,0.73427549]
[1747508819274,0.653243,103080.0,103070.0,0.49689549]
[1747508819479,1.24544426,103080.0,103070.0,0.31769125]
[1747508820167,1.24544426,103080.0,103070.0,0.1373115]
[1747508820881,1.24544426,103080.0,103070.0,0.0902821]
[1747508821566,1.24544426,103080.0,103070.0,0.284244]
[1747508821770,1.24544426,103080.0,103070.0,0.29649236]
[1747508821971,1.24744426,103080.0,103070.0,0.29549236]
[1747508822383,1.24744426,103080.0,103070.0,0.29449236]
[1747508822574,1.24944426,103080.0,103070.0,0.29449236]
[1747508822766,1.24944426,103080.0,103070.0,0.2491349]
[1747508825872,1.12685163,103080.0,103070.0,0.2491349]
[1747508826073,1.19435563,103080.0,103070.0,0.2491349]
[1747508826376,0.657243,103080.0,103070.0,0.3131349]
[1747508826872,0.657243,103080.0,103070.0,0.26378381]
[1747508827181,0.73662062,103080.0,103070.0,0.44378381]
[1747508827385,0.80797099,103080.0,103070.0,0.56637644]
[1747508827879,0.80797099,103080.0,103070.0,0.44378381]
[1747508829078,0.93056362,103080.0,103070.0,0.44378381]
[1747508831083,1.29136362,103080.0,103070.0,0.44378381]
[1747508836088,1.25946362,103080.0,103070.0,0.44378381]
[1747508837482,0.89866362,103080.0,103070.0,0.44378381]
[1747508841982,0.86696362,103080.0,103070.0,0.44378381]
[1747508842378,0.71147099,103080.0,103070.0,0.56637644]
[1747508843685,0.15672799,103080.0,103070.0,0.56637644]
[1747508843877,0.15672799,103080.0,103070.0,1.13437644]
[1747508844486,0.006,103080.0,103070.0,1.13437644]
[1747508844989,0.002,103080.0,103070.0,1.13437644]
[1747508846077,0.002,103080.0,103070.0,1.25696907]
[1747508846377,0.002,103080.0,103070.0,1.13437644]
[1747508847388,0.002,103080.0,103070.0,1.13537644]
[1747508848088,0.002,103080.0,103070.0,1.25896907]
[1747508849292,0.30074351,103090.0,103080.0,0.1939431]
[1747508849493,0.30074351,103090.0,103080.0,1.10082836]
[1747508849891,0.61252799,103100.0,103090.0,0.1939243]
[1747508850085,0.61252799,103100.0,103090.0,0.76551693]
[1747508851089,0.80643349,103100.0,103090.0,0.76551693]
[1747508851289,0.80843349,103100.0,103090.0,0.76551693]
[1747508851590,0.61652799,103100.0,103090.0,0.76551693]
[1747508852490,0.4658,103100.0,103090.0,0.76551693]
[1747508853082,0.4658,103100.0,103090.0,0.78042814]
[1747508853391,0.6597055,103100.0,103090.0,0.78042814]
[1747508853991,0.4658,103100.0,103090.0,0.78042814]
[1747508854684,0.6597054,103100.0,103090.0,0.78042814]
[1747508855182,0.105,103100.0,103090.0,0.78042814]
[1747508855892,0.105,103100.0,103090.0,0.7858703]
[1747508856093,0.2989055,103100.0,103090.0,0.7858703]
[1747508856694,0.105,103100.0,103090.0,0.7858703]
[1747508857095,0.2989054,103100.0,103090.0,0.7858703]
[1747508858295,0.2989054,103100.0,103090.0,0.8184703]
[1747508858697,0.3320054,103100.0,103090.0,0.8184703]
[1747508859297,0.1381,103100.0,103090.0,0.8184703]
[1747508861086,0.3320055,103100.0,103090.0,0.8184703]
[1747508861290,0.3320055,103100.0,103090.0,0.6112703]
[1747508861490,0.3320055,103100.0,103090.0,0.8183903]
[1747508861901,0.3320055,103100.0,103090.0,0.6112703]
[1747508862796,0.3320055,103100.0,103090.0,0.8183903]
[1747508863001,0.6928055,103100.0,103090.0,0.48867767]
[1747508863202,0.7241055,103100.0,103090.0,0.48867767]
[1747508863498,0.7544055,103100.0,103090.0,0.48867767]
[1747508865300,0.87699813,103100.0,103090.0,0.48867767]
[1747508866198,1.30374676,103100.0,103090.0,0.18544216]
[1747508866504,1.30374676,103100.0,103090.0,0.37936646]
[1747508866888,1.51086676,103100.0,103090.0,0.37936646]
[1747508867090,1.51086676,103100.0,103090.0,0.19936646]
[1747508867501,1.51086676,103100.0,103090.0,0.19974621]
[1747508867805,1.87166676,103100.0,103090.0,0.19974621]
[1747508869101,1.87166676,103100.0,103090.0,0.20974621]
[1747508869604,1.87166676,103100.0,103090.0,0.01582191]
[1747508871603,1.77467076,103100.0,103090.0,0.01582191]
[1747508874095,1.87166676,103100.0,103090.0,0.01582191]
[1747508876004,2.08350529,103100.0,103090.0,0.01582191]
[1747508878712,1.53420403,103100.0,103090.0,0.20974611]
[1747508878907,1.86391666,103100.0,103090.0,0.20974611]
[1747508879207,1.44963666,103100.0,103090.0,0.45174611]
[1747508880714,1.57222929,103100.0,103090.0,0.45174611]
[1747508881614,1.57222929,103100.0,103090.0,0.25782191]
[1747508882414,1.57222929,103100.0,103090.0,0.27174611]
[1747508882918,1.57222929,103100.0,103090.0,0.30424611]
[1747508883109,1.57222929,103100.0,103090.0,0.48424611]
[1747508884209,1.65671666,103100.0,103090.0,0.48424611]
[1747508884825,1.92982711,103100.0,103090.0,0.48424611]
[1747508886522,1.20822711,103100.0,103090.0,0.48424611]
[1747508886722,1.92982711,103100.0,103090.0,0.48424611]
[1747508888127,1.20822711,103100.0,103090.0,0.48424611]
[1747508888426,1.92982711,103100.0,103090.0,0.48424611]
[1747508890623,1.68464185,103100.0,103090.0,0.48424611]
[1747508890831,1.74563448,103100.0,103090.0,0.48424611]
[1747508891229,1.86822711,103100.0,103090.0,0.48424611]
[1747508892731,1.62304185,103100.0,103090.0,0.48424611]
[1747508892928,1.74563448,103100.0,103090.0,0.48424611]
[1747508893129,1.53855448,103100.0,103090.0,0.48424611]
[1747508893325,1.41596185,103100.0,103090.0,0.48424611]
[1747508893535,1.58998185,103100.0,103090.0,0.48424611]
[1747508895336,1.38286185,103100.0,103090.0,0.48424611]
[1747508895825,1.50545448,103100.0,103090.0,0.48424611]
[1747508897035,1.35493666,103100.0,103090.0,0.48424611]
[1747508902626,1.38813666,103100.0,103090.0,0.48424611]
[1747508903241,1.17629813,103100.0,103090.0,0.48424611]
[1747508903938,0.6597055,103100.0,103090.0,0.60683874]
[1747508904533,0.6597055,103100.0,103090.0,0.48424611]
[1747508904934,0.6597055,103100.0,103090.0,0.49894319]
[1747508905142,0.2989055,103100.0,103090.0,0.49894319]
[1747508908838,0.44963758,103100.0,103090.0,0.49894319]
[1747508917047,0.81043758,103100.0,103090.0,0.49894319]
[1747508917248,0.44963758,103100.0,103090.0,0.49894319]
[1747508919646,0.44963758,103100.0,103090.0,0.62153582]
[1747508922447,0.48243758,103100.0,103090.0,0.62153582]
[1747508927147,0.44963758,103100.0,103090.0,0.62153582]
[1747508927548,0.25573208,103100.0,103090.0,0.62153582]
[1747508927852,0.25573208,103100.0,103090.0,0.82845582]
[1747508929546,0.44963748,103100.0,103090.0,0.82845582]
[1747508929747,0.44963748,103100.0,103090.0,1.03541582]
[1747508929948,0.25573208,103100.0,103090.0,1.03541582]
[1747508932851,0.25573208,103100.0,103090.0,0.82849582]
[1747508933151,0.44963758,103100.0,103090.0,1.03537582]
[1747508933351,0.28843208,103100.0,103090.0,1.03537582]
[1747508934552,0.48233748,103100.0,103090.0,0.91278319]
[1747508934756,0.28843208,103100.0,103090.0,1.03537582]
[1747508934957,0.48233748,103100.0,103090.0,1.07240815]
[1747508938559,0.28843208,103100.0,103090.0,1.07240815]
[1747508939456,0.25573208,103100.0,103090.0,1.07240815]
[1747508939657,0.44963748,103100.0,103090.0,1.07240815]
[1747508939856,0.48033748,103100.0,103090.0,1.07240815]
[1747508940365,0.48033748,103100.0,103090.0,0.86552815]
[1747508940552,0.3296054,103100.0,103090.0,1.07240815]
[1747508941365,0.1357,103100.0,103090.0,1.07240815]
[1747508942353,0.1357,103100.0,103090.0,1.43320815]
[1747508946869,0.1357,103100.0,103090.0,1.22632815]
[1747508947069,0.1357,103100.0,103090.0,1.43316815]
[1747508947271,0.1357,103100.0,103090.0,1.07236815]
[1747508949071,0.1357,103100.0,103090.0,1.43316815]
[1747508949873,0.1357,103100.0,103090.0,1.07236815]
[1747508950973,0.1357,103100.0,103090.0,1.03533582]
[1747508954469,0.28643208,103100.0,103090.0,1.03533582]
[1747508955362,0.25573208,103100.0,103090.0,1.03533582]
[1747508955975,0.25573208,103100.0,103090.0,1.39613582]
[1747508957074,0.25573208,103100.0,103090.0,1.44314046]
[1747508958975,0.25573208,103100.0,103090.0,1.11370783]
[1747508959277,0.25573208,103100.0,103090.0,1.44310046]
[1747508959476,0.28623208,103100.0,103090.0,1.44310046]
[1747508961386,0.28623208,103100.0,103090.0,1.23630046]
[1747508961673,0.28623208,103100.0,103090.0,1.44310046]
[1747508962073,0.28623208,103100.0,103090.0,1.39609582]
[1747508962271,0.1355,103100.0,103090.0,1.39609582]
[1747508962472,0.1355,103100.0,103090.0,1.44309838]
[1747508962977,0.105,103100.0,103090.0,1.44309838]
[1747508966174,0.105,103100.0,103090.0,1.79349838]
[1747508968680,0.103,103100.0,103090.0,1.79349838]
[1747508970878,0.101,103100.0,103090.0,1.79349838]
[1747508971481,0.101,103100.0,103090.0,1.91609101]
[1747508971791,0.101,103100.0,103090.0,1.79349838]
[1747508976591,0.101,103100.0,103090.0,1.8429554]
[1747508976983,0.101,103100.0,103090.0,1.88841452]
[1747508980887,0.78637804,103120.0,103090.0,1.91407895]
[1747508981089,0.78717804,103120.0,103110.0,0.31647923]
[1747508981289,0.78717804,103120.0,103110.0,0.52323923]
[1747508981486,0.78717804,103120.0,103110.0,0.61583923]
[1747508981686,0.81877804,103120.0,103110.0,0.61583923]
[1747508982194,0.81877804,103120.0,103110.0,0.79583923]
[1747508982396,0.82177804,103120.0,103110.0,0.79583923]
[1747508982693,0.82177804,103120.0,103110.0,0.6732466]
[1747508982890,0.82177804,103120.0,103110.0,0.79583923]
[1747508983095,0.82477804,103120.0,103110.0,0.79583923]
[1747508983697,0.82177804,103120.0,103110.0,0.79583923]
[1747508983896,0.82477804,103120.0,103110.0,0.79583923]
[1747508984799,0.82477804,103120.0,103110.0,0.80565672]
[1747508987497,1.01864594,103120.0,103110.0,0.80565672]
[1747508989996,1.01864594,103120.0,103110.0,0.4664866]
[1747508990305,1.14123857,103120.0,103110.0,0.3738866]
[1747508990898,1.14123857,103120.0,103110.0,0.37932876]
[1747508991401,1.14123857,103120.0,103110.0,0.19932876]
[1747508993310,1.01864594,103120.0,103110.0,0.19932876]
[1747508993615,1.14123857,103120.0,103110.0,0.19932876]
[1747508998113,1.14123857,103120.0,103110.0,0.23052876]
[1747508999118,0.93021366,103120.0,103110.0,0.23052876]
[1747508999518,0.93021366,103120.0,103110.0,0.23090851]
[1747509000217,0.93021366,103120.0,103110.0,0.41090851]
[1747509000612,0.93021366,103120.0,103110.0,0.37970851]
[1747509001316,0.56941366,103120.0,103110.0,0.19970851]
[1747509001620,0.93021366,103120.0,103110.0,0.19970851]
[1747509002617,0.80762103,103120.0,103110.0,0.19970851]
[1747509002826,0.93021366,103120.0,103110.0,0.23200851]
[1747509003020,0.93021366,103120.0,103110.0,0.19970851]
[1747509004225,0.93021366,103120.0,103110.0,0.41260851]
[1747509005114,0.93021366,103120.0,103110.0,0.23260851]
[1747509005820,0.93021366,103120.0,103110.0,0.19970851]
[1747509006023,0.93021366,103120.0,103110.0,0.23110851]
[1747509006223,0.93021366,103120.0,103110.0,0.41110851]
[1747509007222,0.93021366,103120.0,103110.0,0.44380851]
[1747509007823,0.93021366,103120.0,103110.0,0.47490851]
[1747509010724,0.56941366,103120.0,103110.0,0.47490851]
[1747509010927,0.93021366,103120.0,103110.0,0.47490851]
[1747509011431,0.56941366,103120.0,103110.0,0.47490851]
[1747509011617,0.93021366,103120.0,103110.0,0.47490851]
[1747509012728,0.56941366,103120.0,103110.0,0.47490851]
[1747509013030,0.93021366,103120.0,103110.0,0.47490851]
[1747509013424,0.56941366,103120.0,103110.0,0.47490851]
[1747509013631,0.93021366,103120.0,103110.0,0.47490851]
[1747509013825,0.56941366,103120.0,103110.0,0.47490851]
[1747509014028,0.93021366,103120.0,103110.0,0.47490851]